bitfinex/quotes_ETHUSD_20220226
["timestamp","ask_amount","ask_price","bid_price","bid_amount"]
[1645878205580,0.1070556,2752.0,2751.4,1.19343921]
[1645878206181,0.1070556,2751.9,2751.4,1.19343921]
[1645878206383,0.00470792,2752.1,2751.5,0.3627]
[1645878206582,0.10709683,2752.0,2751.4,1.19343921]
[1645878206981,0.10709683,2752.0,2751.4,4.69343921]
[1645878207185,0.10709683,2752.0,2751.4,1.19343921]
[1645878207584,0.10709683,2751.9,2751.4,1.19343921]
[1645878207782,0.00470792,2752.1,2751.4,1.19343921]
[1645878207983,0.10716249,2752.0,2751.4,1.19343921]
[1645878208184,0.10716249,2752.0,2751.4,4.69343921]
[1645878208416,0.10716249,2752.0,2751.5,0.3627]
[1645878208618,0.10716249,2751.9,2751.5,0.3627]
[1645878208819,0.00470792,2752.1,2751.5,0.3627]
[1645878209021,0.10718844,2752.0,2751.5,0.3627]
[1645878209620,0.03033212,2752.3,2751.9,1.17289916]
[1645878209821,0.10365134,2752.2,2751.9,1.17289916]
[1645878210022,0.00470858,2752.1,2751.9,1.17289916]
[1645878210225,0.13345174,2752.0,2751.9,1.17289916]
[1645878212463,0.0298004,2752.0,2751.9,1.17289916]
[1645878212866,0.13349225,2752.0,2751.9,1.17289916]
[1645878213965,0.0298004,2752.0,2751.9,1.17289916]
[1645878214570,0.0298004,2752.0,2751.9,4.67289916]
[1645878214771,0.00436381,2752.1,2751.9,6.78735221]
[1645878214968,0.00436381,2752.1,2752.0,3.8627]
[1645878215570,0.02558187,2752.9,2752.0,3.8627]
[1645878215935,0.00436384,2752.2,2752.0,3.5]
[1645878216123,0.00436384,2752.2,2751.9,0.33302134]
[1645878216324,0.00436384,2752.2,2751.9,0.17832134]
[1645878216523,0.00436384,2752.2,2751.9,0.03302134]
[1645878216524,0.10359487,2752.1,2751.9,0.03302134]
[1645878216724,0.68488025,2752.8,2751.9,0.03302134]
[1645878216923,0.78848799,2752.8,2751.9,0.03302134]
[1645878217124,0.00438627,2752.2,2751.9,0.03302134]
[1645878217321,0.10360774,2752.1,2751.9,0.03302134]
[1645878218125,0.00438629,2752.1,2751.9,0.03302134]
[1645878219125,0.90903,2752.6,2751.9,0.03302134]
[1645878219324,0.00441928,2752.1,2751.9,0.03302134]
[1645878220361,0.90903,2752.6,2751.9,0.03302134]
[1645878220563,0.00441777,2752.1,2751.9,0.03302134]
[1645878221463,0.10357214,2752.0,2751.5,0.1453]
[1645878221664,0.523,2751.9,2751.5,0.1453]
[1645878221862,0.10357214,2751.8,2751.5,0.1453]
[1645878222065,0.10357214,2751.8,2750.9,1.28256817]
[1645878222264,0.10357214,2751.8,2751.0,1.41702694]
[1645878222464,0.62657214,2751.8,2751.0,1.41702694]
[1645878222764,0.10357214,2751.7,2751.0,1.41702694]
[1645878225527,1.01294214,2751.7,2750.8,1.18906944]
[1645878225832,0.62657214,2751.6,2750.8,1.18906944]
[1645878226125,11.03,2751.8,2750.8,1.18906944]
[1645878226126,0.62657214,2751.5,2750.8,1.18906944]
[1645878226325,11.03,2751.8,2750.8,1.18465558]
[1645878226326,0.62657214,2751.4,2750.8,1.18465558]
[1645878226529,0.62657214,2751.3,2750.7,5.709]
[1645878226727,0.523,2751.3,2750.8,0.00441412]
[1645878227153,0.523,2751.3,2750.8,0.00334283]
[1645878227561,0.523,2751.3,2750.7,1.41844768]
[1645878227759,0.523,2751.3,2750.8,1.41844768]
[1645878227960,0.523,2751.3,2750.4,0.00336166]
[1645878228159,0.08325986,2751.2,2750.4,1.42180826]
[1645878228765,0.523,2751.1,2750.4,1.42180826]
[1645878229462,0.523,2751.1,2750.4,0.00336166]
[1645878230264,0.43214067,2751.1,2750.4,0.00336166]
[1645878231428,0.43214067,2751.1,2750.6,0.0050005]
[1645878232333,0.43214067,2751.1,2750.4,0.00256166]
[1645878232535,0.90962,2751.0,2750.4,0.00256166]
[1645878232734,0.523,2750.9,2750.7,0.00500044]
[1645878233337,0.423,2750.9,2750.7,0.00500044]
[1645878233537,0.423,2750.9,2750.3,0.00256166]
[1645878233538,0.9097968,2750.8,2750.3,0.00256166]
[1645878233737,0.9097968,2750.8,2750.2,0.2257427]
[1645878233738,2.3426,2750.7,2750.2,0.2257427]
[1645878234756,2.3426,2750.7,2750.2,0.20573781]
[1645878234959,2.3426,2750.7,2750.3,0.0050007]
[1645878235860,0.9098,2750.6,2750.2,0.20573781]
[1645878236063,1.4328,2750.6,2750.2,0.20573781]
[1645878236262,2.3425616,2750.6,2750.4,0.00483563]
[1645878237160,2.3425616,2750.6,2750.2,0.20573781]
[1645878237362,0.90976,2750.5,2750.4,0.00483563]
[1645878237559,1.43276,2750.5,2750.4,0.00483563]
[1645878238408,1.43276,2750.5,2750.2,0.20573781]
[1645878238611,1.43276,2750.5,2750.3,0.00483566]
[1645878239614,1.43276,2750.5,2750.2,0.20573781]
[1645878239814,1.43276,2750.5,2750.3,0.00471218]
[1645878240817,0.523,2750.5,2750.2,0.20573781]
[1645878241018,1.84927503,2750.7,2750.2,3.70573781]
[1645878241019,0.02981503,2750.7,2750.2,3.70573781]
[1645878241223,0.02981503,2750.7,2750.3,1.08129042]
[1645878241418,0.02981503,2750.7,2750.4,3.5]
[1645878242019,0.02981503,2750.7,2750.3,1.07657824]
[1645878242268,0.02981503,2750.7,2750.4,0.0047121]
[1645878242568,0.02981503,2750.7,2750.4,3.5047121]
[1645878242967,0.02981503,2750.7,2750.4,0.0047121]
[1645878243166,0.02981503,2750.7,2750.3,1.07657824]
[1645878243367,0.02981503,2750.7,2750.4,0.00443933]
[1645878244373,0.02981503,2750.7,2750.3,1.07657824]
[1645878244575,0.02981747,2750.5,2750.4,0.00443933]
[1645878245474,0.02981747,2750.5,2750.3,1.07657824]
[1645878245914,0.02981747,2750.5,2750.3,1.08101763]
[1645878246715,0.02981747,2750.5,2750.3,1.07657824]
[1645878247318,0.02981747,2750.5,2750.3,1.44369088]
[1645878247918,0.02981747,2750.5,2750.3,1.43927824]
[1645878248319,0.02981747,2750.5,2750.3,1.44369088]
[1645878249224,0.02981747,2750.5,2750.3,1.43927824]
[1645878249424,0.02981747,2750.5,2750.3,1.44369088]
[1645878249678,0.523,2751.5,2750.3,1.44369088]
[1645878249870,0.10335232,2751.4,2750.5,0.3627]
[1645878250069,0.10335232,2751.4,2750.3,1.44369088]
[1645878250269,0.10335232,2751.4,2750.3,1.43927824]
[1645878250473,0.37635232,2751.5,2750.4,4.0]
[1645878250674,0.37635232,2751.5,2750.8,0.00441445]
[1645878251271,0.02986264,2751.6,2750.8,0.00441445]
[1645878251474,0.02986264,2751.6,2750.6,3.8627]
[1645878251671,0.02986264,2751.6,2750.6,4.1627]
[1645878251872,0.02986264,2751.6,2750.8,0.00441461]
[1645878252470,0.02986264,2751.6,2751.4,1.42808469]
[1645878252677,0.02986264,2751.6,2750.9,0.1453]
[1645878252873,0.02986264,2751.6,2751.0,0.3627]
[1645878253272,0.02986264,2751.6,2750.9,3.5]
[1645878254132,0.02986264,2751.6,2751.1,1.27978622]
[1645878254530,0.02986264,2751.6,2751.2,0.3627]
[1645878254732,0.02986264,2751.6,2751.1,1.27978622]
[1645878257034,0.02986264,2751.6,2751.1,5.14248622]
[1645878257267,0.02986264,2751.6,2751.1,1.64248622]
[1645878257671,0.02986264,2751.6,2751.2,3.8627]
[1645878258473,0.02986264,2751.6,2751.2,16.338]
[1645878258677,0.02986264,2751.6,2751.2,10.308]
[1645878258873,0.02986264,2751.6,2751.4,0.3627]
[1645878259077,0.02986264,2751.6,2751.5,3.8627]
[1645878259674,0.00468165,2751.8,2751.5,3.8627]
[1645878259874,0.68488025,2752.6,2751.5,3.8627]
[1645878260079,9.83068165,2753.1,2751.5,3.8627]
[1645878260080,0.68488025,2752.7,2751.7,0.3627]
[1645878260276,0.00468181,2751.8,2751.7,0.6627]
[1645878260477,0.00468181,2751.8,2751.7,4.1627]
[1645878260676,0.00468181,2751.8,2751.7,5.52126007]
[1645878260927,0.00468181,2751.8,2751.6,1.3622]
[1645878261125,0.68488025,2752.5,2751.6,1.2169]
[1645878261126,0.68488025,2752.4,2751.6,1.2169]
[1645878261525,0.0046818,2751.9,2751.6,1.2169]
[1645878262137,0.0046818,2751.9,2751.6,2.2846751]
[1645878262332,0.68488025,2752.4,2751.6,2.2846751]
[1645878262733,0.00467554,2751.9,2751.6,2.2846751]
[1645878263534,3.93518025,2752.5,2751.6,2.2846751]
[1645878263733,0.00467554,2751.9,2751.6,2.2846751]
[1645878264801,0.02142616,2751.8,2751.6,1.2169]
[1645878265603,0.02142616,2751.8,2751.6,1.04209167]
[1645878265801,0.02142616,2751.8,2751.6,1.40479167]
[1645878266200,0.02610254,2751.8,2751.6,1.40479167]
[1645878266402,0.02610254,2751.8,2751.6,1.04209167]
[1645878267004,0.02610254,2751.8,2751.5,0.3]
[1645878267202,0.02142616,2751.8,2751.4,0.03387114]
[1645878267406,0.02610254,2751.8,2751.4,0.03387114]
[1645878267804,0.02610254,2751.8,2751.3,1.2195]
[1645878268302,0.02610254,2751.8,2751.1,1.17451139]
[1645878268303,0.02142616,2751.8,2751.1,1.17451139]
[1645878268811,0.02610251,2751.8,2751.1,1.17451139]
[1645878269614,0.02142616,2751.8,2751.1,1.17451139]
[1645878269815,0.02610233,2751.8,2751.1,1.17451139]
[1645878270516,0.09816888,2751.7,2751.1,1.17451139]
[1645878271716,0.09816888,2751.7,2750.9,0.01871085]
[1645878271921,0.09816888,2751.7,2750.8,3.5]
[1645878272175,0.09816888,2751.7,2750.9,1.42553919]
[1645878272977,0.09816888,2751.7,2751.0,1.20920443]
[1645878273379,0.15679685,2750.9,2750.8,0.14997758]
[1645878273582,0.15679685,2750.9,2750.8,0.00467758]
[1645878273784,0.25509247,2750.9,2750.8,0.00467758]
[1645878274384,0.25509247,2750.9,2750.4,7.45]
[1645878274586,0.15679685,2750.9,2750.7,0.00179019]
[1645878274984,0.09819877,2750.8,2750.7,0.00179019]
[1645878275584,0.09819877,2750.8,2750.5,1.42561043]
[1645878275786,0.09819877,2750.8,2750.6,0.00179026]
[1645878276718,0.09819877,2750.8,2750.5,1.42561043]
[1645878277519,0.09819877,2750.8,2750.4,1.37057978]
[1645878278322,0.09819877,2750.8,2750.5,1.42575251]
[1645878279021,0.11963282,2750.8,2750.3,0.14076163]
[1645878279221,0.02143405,2750.8,2750.4,1.42584227]
[1645878280272,0.02143405,2750.8,2750.4,2.69716482]
[1645878280472,0.02143405,2750.8,2750.5,1.42584227]
[1645878280670,0.02143405,2750.8,2750.5,1.43084571]
[1645878280869,0.09820467,2750.7,2750.5,0.00500344]
[1645878281569,0.09820467,2750.7,2750.4,1.27132255]
[1645878281770,0.09820467,2750.7,2750.5,0.00500344]
[1645878282775,0.09820467,2750.7,2750.4,1.27132255]
[1645878283073,0.09820467,2750.7,2750.5,1.43211288]
[1645878283273,0.09820467,2750.7,2750.6,1.42710944]
[1645878283518,0.09820467,2750.7,2750.6,1.4262101]
[1645878283718,0.09820467,2750.7,2750.5,0.00500344]
[1645878283927,0.09820467,2750.7,2750.4,1.63402255]
[1645878284127,0.02143405,2750.8,2750.6,0.3627]
[1645878284329,0.02143405,2750.8,2750.7,3.8627]
[1645878284723,0.02143405,2750.8,2750.7,4.8627]
[1645878285527,3.405e-05,2750.8,2750.7,4.8627]
[1645878285728,0.6898815,2751.8,2750.8,7.8627]
[1645878285729,0.00500125,2751.8,2750.8,7.8627]
[1645878285928,0.00500125,2751.8,2750.9,3.5]
[1645878286127,0.00500125,2751.8,2750.9,3.8627]
[1645878286331,0.00500125,2751.8,2750.9,20.8927]
[1645878286527,3.208,2752.2,2750.9,20.8927]
[1645878286528,0.68488025,2752.1,2750.9,20.8927]
[1645878286730,0.68488025,2752.1,2751.8,1.28061753]
[1645878286927,0.68488025,2752.2,2751.8,1.28061753]
[1645878287365,0.68488025,2752.2,2751.2,4.9977]
[1645878287566,0.68488025,2752.2,2751.2,5.935]
[1645878287768,0.00500203,2752.1,2751.2,5.935]
[1645878288867,0.68488025,2752.2,2751.2,5.935]
[1645878289067,0.00464748,2751.8,2751.2,5.935]
[1645878289667,0.00464748,2751.8,2751.2,2.435]
[1645878289870,0.0245432,2751.8,2751.2,1.435]
[1645878290071,0.01989572,2751.8,2751.5,1.18503357]
[1645878290272,0.02454309,2751.8,2751.5,1.18503357]
[1645878291124,0.01989572,2751.8,2751.5,1.18503357]
[1645878291524,0.0245432,2751.8,2751.5,1.18503357]
[1645878292125,0.0245432,2751.8,2751.4,0.3]
[1645878292327,0.01989572,2751.8,2751.2,1.135]
[1645878292826,0.0245432,2751.8,2751.2,1.135]
[1645878293230,0.0245432,2751.8,2751.2,2.33897684]
[1645878293426,0.0245432,2751.8,2751.2,0.84107748]
[1645878293427,0.70942345,2751.8,2751.2,0.84107748]
[1645878293628,0.70942345,2751.8,2751.0,5.99109949]
[1645878293629,0.68488025,2751.7,2751.0,5.99109949]
[1645878293827,0.68488025,2751.7,2751.0,0.03309949]
[1645878294026,0.68488025,2751.6,2751.0,0.03309949]
[1645878294429,0.68488025,2751.6,2750.9,0.05135464]
[1645878294677,0.68488025,2751.5,2750.9,0.05135464]
[1645878294883,0.68488025,2751.5,2750.9,0.03266412]
[1645878295083,1.4134,2751.6,2750.9,0.03266412]
[1645878295084,0.68488025,2751.4,2750.9,0.03266412]
[1645878295886,0.523,2751.5,2750.9,0.03266412]
[1645878295887,1.20788025,2751.5,2750.9,0.03266412]
[1645878296085,0.68488025,2751.4,2750.9,0.03266412]
[1645878296284,0.523,2751.5,2750.9,0.03266412]
[1645878296485,1.20788025,2751.5,2750.9,0.03266412]
[1645878296886,0.68488025,2751.4,2750.9,0.03266412]
[1645878297085,0.523,2751.5,2750.9,0.03266412]
[1645878297086,1.20788025,2751.5,2750.9,0.03266412]
[1645878297986,0.523,2751.5,2750.9,0.03266412]
[1645878298188,1.20788025,2751.5,2750.9,0.03266412]
[1645878299245,1.20788025,2751.5,2750.8,0.03770803]
[1645878299644,1.20788025,2751.5,2750.8,0.03303728]
[1645878299845,1.20788025,2751.5,2750.8,0.03770798]
[1645878300647,0.68488025,2751.5,2750.8,0.03770798]
[1645878300846,0.68488025,2751.5,2750.8,0.03303728]
[1645878301247,0.68488025,2751.5,2750.8,0.03788474]
[1645878302049,0.68488025,2751.5,2750.8,0.03303728]
[1645878302276,0.68488025,2751.4,2750.8,0.03788474]
[1645878302477,0.68488025,2751.5,2750.8,0.03788474]
[1645878303579,0.77482556,2751.5,2750.8,0.03788474]
[1645878304178,0.77482556,2751.5,2751.0,0.03309949]
[1645878305934,0.08994531,2751.4,2751.0,0.03309949]
[1645878306131,0.08994531,2751.3,2751.0,0.03309949]
[1645878306327,0.77482556,2751.6,2751.0,0.03309949]
[1645878306930,0.08994531,2751.5,2751.1,1.43747376]
[1645878307132,0.08994531,2751.4,2751.2,3.5]
[1645878307329,0.00465761,2751.8,2751.3,1.43747376]
[1645878307529,0.08987252,2751.7,2751.4,3.5]
[1645878307731,0.08987252,2751.7,2751.5,1.43747376]
[1645878307932,0.08987252,2751.7,2751.6,1.239029]
[1645878308133,0.09378884,2752.1,2751.6,2.67650276]
[1645878308332,0.00467046,2751.8,2751.6,1.239029]
[1645878308530,0.08987252,2751.7,2751.6,1.239029]
[1645878308732,0.08987252,2751.7,2751.6,2.67643614]
[1645878308931,0.08987252,2751.7,2751.6,1.239029]
[1645878309331,0.09378884,2752.1,2751.6,1.239029]
[1645878309532,0.09378884,2752.1,2751.6,2.67644151]
[1645878309533,0.00467051,2751.8,2751.6,2.67644151]
[1645878309777,0.08987252,2751.7,2751.6,1.239029]
[1645878309976,0.08987252,2751.7,2751.6,2.67646873]
[1645878310374,0.08987252,2751.7,2751.6,1.239029]
[1645878310581,0.08987252,2751.7,2751.6,2.67646454]
[1645878310776,0.08987252,2751.7,2751.6,3.67645157]
[1645878310977,0.08987252,2751.7,2751.6,7.83915157]
[1645878311282,0.08987252,2751.7,2751.6,7.47645157]
[1645878311782,0.00466966,2751.8,2751.6,3.97645157]
[1645878311977,0.00466966,2751.8,2751.7,1.43742257]
[1645878312178,0.09443679,2751.8,2751.6,1.239029]
[1645878312378,0.08976713,2751.7,2751.6,1.239029]
[1645878312587,0.00466966,2751.8,2751.7,7.5]
[1645878312783,0.00391632,2752.2,2751.7,12.0]
[1645878312983,0.68879657,2752.5,2751.7,8.5]
[1645878313286,0.91317366,2752.7,2751.7,19.8927]
[1645878313287,6.966e-05,2751.8,2751.7,19.8927]
[1645878313544,0.00391632,2752.6,2751.9,0.36343034]
[1645878313746,0.68488025,2752.6,2751.9,0.00073034]
[1645878313948,0.00391632,2752.5,2751.9,0.00073034]
[1645878314143,0.68488025,2752.6,2751.9,0.00073034]
[1645878314543,0.00391632,2752.5,2751.9,0.00073034]
[1645878314744,0.68879657,2752.5,2751.9,0.00073034]
[1645878314943,0.68488025,2752.5,2751.9,0.00073034]
[1645878315549,0.00288493,2752.3,2751.9,0.00073034]
[1645878316550,0.68488025,2752.4,2751.9,0.00073034]
[1645878316551,0.68879657,2752.4,2751.9,0.00073034]
[1645878316746,0.00288493,2752.2,2751.9,0.00073034]
[1645878317679,0.00391632,2752.4,2751.9,0.00073034]
[1645878317878,0.00467296,2752.2,2751.9,0.00073034]
[1645878318784,0.00391632,2752.4,2751.9,0.00073034]
[1645878318986,0.68488025,2752.5,2751.9,0.00073034]
[1645878318987,0.00443882,2752.2,2751.9,0.00073034]
[1645878319189,0.00443882,2752.2,2752.1,0.03241544]
[1645878319985,0.68488025,2752.5,2752.1,0.03241544]
[1645878320188,0.00443876,2752.3,2752.1,0.03241544]
[1645878321226,0.68488025,2752.5,2752.1,0.03241544]
[1645878321429,0.00443874,2752.3,2752.1,0.03241544]
[1645878322430,0.68488025,2752.4,2752.1,0.03241544]
[1645878322631,0.91708998,2752.7,2752.1,0.03241544]
[1645878322632,0.68488025,2752.5,2752.1,0.03241544]
[1645878322832,0.00439361,2752.3,2752.1,0.03241544]
[1645878323633,0.68488025,2752.5,2752.1,0.03241544]
[1645878323832,0.0044113,2752.3,2752.1,0.03241544]
[1645878324032,0.0044113,2752.3,2751.9,0.04386804]
[1645878324890,0.68488025,2752.5,2751.9,0.04386804]
[1645878325087,0.00391632,2752.6,2751.9,0.04386804]
[1645878325088,0.00441135,2752.2,2751.9,0.04386804]
[1645878326090,0.68879657,2752.7,2752.5,1.18630788]
[1645878326289,0.91317366,2753.0,2751.9,1.65566804]
[1645878326290,0.00391632,2752.9,2751.9,1.65566804]
[1645878326489,0.00391632,2752.9,2752.0,3.5]
[1645878326894,0.00391632,2752.9,2752.0,1.3]
[1645878326895,0.68879657,2752.9,2752.0,1.3]
[1645878327094,0.68879657,2752.9,2752.0,0.3]
[1645878327591,0.68879657,2752.9,2752.2,1.33861395]
[1645878327592,0.00441624,2752.6,2752.2,1.33861395]
[1645878327790,0.00441624,2752.6,2751.9,2.59296804]
[1645878328192,0.00441624,2752.6,2751.9,1.59296804]
[1645878328435,0.00391632,2752.7,2751.9,2.59296804]
[1645878328629,0.00441635,2752.4,2751.9,1.59296804]
[1645878328832,0.00441635,2752.4,2751.9,3.75757518]
[1645878329029,0.00441635,2752.4,2752.1,0.03241544]
[1645878329631,0.68488025,2752.5,2752.1,0.03241544]
[1645878330032,0.68929619,2752.4,2752.1,0.03241544]
[1645878330238,0.68488025,2752.3,2752.1,0.03241544]
[1645878330437,0.68488025,2752.2,2752.1,0.03241544]
[1645878331234,0.52741566,2752.3,2752.1,0.03241544]
[1645878331458,0.68222655,2752.2,2752.1,0.03241544]
[1645878331635,0.52741566,2752.3,2752.1,0.03241544]
[1645878332178,0.523,2752.3,2752.1,0.03241544]
[1645878332380,0.52741563,2752.3,2752.1,0.03241544]
[1645878332580,1.52881194,2752.3,2752.1,0.03241544]
[1645878332779,0.08822265,2752.2,2752.1,0.03241544]
[1645878332986,0.61122265,2752.2,2752.1,0.03241544]
[1645878333483,0.61122265,2752.2,2751.9,0.00073034]
[1645878333681,3.77030814,2752.1,2751.9,0.00073034]
[1645878333882,0.77030814,2752.0,2751.9,0.00073034]
[1645878334585,0.61122265,2752.0,2751.9,0.00073034]
[1645878337431,1.20468464,2752.0,2751.9,0.00073034]
[1645878337629,1.29290729,2752.0,2751.9,0.00073034]
[1645878338030,0.61122265,2752.0,2751.9,0.00073034]
[1645878339032,1.29290729,2752.0,2751.9,0.00073034]
[1645878339676,1.31875827,2752.0,2751.9,0.00073034]
[1645878339880,0.63707363,2752.0,2751.9,0.00073034]
[1645878340084,0.11407363,2752.0,2751.9,0.00073034]
[1645878343830,0.79575827,2752.0,2751.9,0.00073034]
[1645878344230,0.11407363,2752.0,2751.9,0.00073034]
[1645878346639,0.11798995,2752.0,2751.9,0.00073034]
[1645878348895,1.02678898,2752.0,2751.9,0.00073034]
[1645878349096,0.11407363,2752.0,2751.9,0.00073034]
[1645878350501,0.02323468,2752.0,2751.9,0.00073034]
[1645878351529,0.91713123,2752.1,2751.9,0.00073034]
[1645878352534,0.91271535,2752.1,2751.9,0.00073034]
[1645878352736,0.9171312,2752.1,2751.9,0.00073034]
[1645878353735,0.91271535,2752.1,2751.9,0.00073034]
[1645878353936,0.9171312,2752.1,2751.9,0.00073034]
[1645878354137,0.90879903,2752.0,2751.9,0.00073034]
[1645878354682,0.90879903,2752.0,2751.9,0.06782491]
[1645878356590,1.43179903,2752.0,2751.9,0.06782491]
[1645878357188,0.523,2752.0,2751.9,0.06782491]
[1645878358833,1.89538165,2752.0,2751.9,0.06782491]
[1645878359233,1.89538165,2752.0,2751.9,0.03003778]
[1645878359434,0.523,2752.0,2751.9,0.03003778]
[1645878359638,1.89538165,2752.0,2751.9,0.03003778]
[1645878359833,1.89538165,2752.0,2751.9,0.06782491]
[1645878360237,0.523,2752.0,2751.9,0.06782491]
[1645878360435,1.89538165,2752.0,2751.9,0.06782491]
[1645878362585,1.89538165,2752.0,2751.9,0.00073034]
[1645878362586,16.42538165,2752.0,2751.9,0.00073034]
[1645878364486,16.45114326,2752.0,2751.9,0.00073034]
[1645878367132,12.95114326,2752.0,2751.9,0.00073034]
[1645878368333,11.03833221,2752.1,2751.9,0.00073034]
[1645878368533,0.523,2752.0,2751.9,0.00073034]
[1645878369674,0.55010433,2752.0,2751.9,0.00073034]
[1645878370480,0.63047703,2752.0,2751.9,0.00073034]
[1645878374328,15.16047703,2752.0,2751.9,0.00073034]
[1645878374530,16.24543909,2752.0,2751.9,0.00073034]
[1645878374733,21.32164096,2752.0,2751.9,0.00073034]
[1645878374934,28.07591379,2752.0,2751.9,0.00073034]
[1645878375534,11.03,2751.8,2751.2,0.00441735]
[1645878375733,18.77651771,2751.7,2751.2,0.00441735]
[1645878375934,0.0803727,2751.6,2751.2,0.00441735]
[1645878376133,11.03,2751.4,2751.2,0.00441735]
[1645878376336,11.03,2751.4,2751.2,1.735e-05]
[1645878376337,20.1333727,2751.3,2751.2,1.735e-05]
[1645878376536,11.03,2750.8,2750.3,0.00256166]
[1645878376738,11.03,2750.8,2750.1,6.1313654]
[1645878376739,12.85138884,2750.6,2750.1,5.8813654]
[1645878376937,11.71297056,2750.4,2750.1,5.8813654]
[1645878377178,1.20597056,2750.3,2750.1,5.8813654]
[1645878377379,0.0803727,2750.2,2750.1,5.8813654]
[1645878377580,0.6033727,2750.2,2750.1,5.8813654]
[1645878377780,1.28634326,2750.2,2750.1,5.8813654]
[1645878378080,1.28634326,2750.2,2750.1,5.88637013]
[1645878378783,0.6033727,2750.2,2750.1,5.88637013]
[1645878378985,0.6033727,2750.2,2750.1,5.8813654]
[1645878383339,0.0803727,2750.2,2750.1,5.8813654]
[1645878383736,0.91157884,2751.0,2750.1,6.0267654]
[1645878383737,0.0803727,2750.7,2750.1,6.0267654]
[1645878383937,0.02136748,2750.2,2750.1,5.8813654]
[1645878384539,0.02136748,2750.2,2750.1,6.0267654]
[1645878384783,0.02136748,2750.2,2750.1,9.5267654]
[1645878384987,0.02136748,2750.2,2750.1,9.8894654]
[1645878385584,0.02136748,2750.2,2750.1,6.3894654]
[1645878385985,0.02136748,2750.2,2750.1,9.8894654]
[1645878386185,0.02136748,2750.2,2750.1,6.3894654]
[1645878387090,0.02136748,2750.2,2750.1,11.33138209]
[1645878387287,0.02136748,2750.2,2750.1,12.63138209]
[1645878389049,0.02136748,2750.2,2750.1,9.13138209]
[1645878389248,0.00481051,2751.1,2750.1,9.13138209]
[1645878389448,0.08022446,2751.0,2750.7,1.04395823]
[1645878389848,0.08022446,2751.0,2750.4,0.00336172]
[1645878390050,0.08022446,2750.9,2750.5,0.00466211]
[1645878390253,0.08022446,2750.8,2750.5,0.00466211]
[1645878390451,0.00466105,2751.1,2750.5,0.00466211]
[1645878390452,0.08022446,2750.7,2750.5,0.00466211]
[1645878390650,0.08022446,2750.6,2750.5,0.00466211]
[1645878391049,0.08022446,2750.9,2750.3,0.00336172]
[1645878391251,0.08022446,2750.8,2750.5,0.00466211]
[1645878391451,0.08022446,2750.7,2750.5,0.00466211]
[1645878391652,0.08022446,2750.6,2750.5,0.00466211]
[1645878392049,0.08022446,2750.9,2750.5,0.00466211]
[1645878392291,0.90959,2751.0,2750.2,0.00336172]
[1645878392292,0.08022446,2750.8,2750.2,0.00336172]
[1645878392490,0.90959,2751.0,2750.4,0.00466215]
[1645878392491,0.08022446,2750.7,2750.4,0.00466215]
[1645878392691,0.08022446,2750.6,2750.4,0.00466215]
[1645878392890,1.43259,2751.0,2750.4,0.00466215]
[1645878392891,0.08022446,2750.5,2750.4,0.00466215]
[1645878393297,0.08022446,2750.5,2750.1,6.0267654]
[1645878393494,1.22737676,2751.2,2750.1,6.0267654]
[1645878393694,0.08500599,2751.1,2750.3,0.00467222]
[1645878393894,0.08033509,2751.0,2750.3,0.00387222]
[1645878394096,0.02136224,2750.9,2750.3,0.00387222]
[1645878394495,0.08033509,2750.8,2750.2,0.00336172]
[1645878394701,0.08033509,2750.8,2750.1,6.0267654]
[1645878395701,0.06043509,2750.8,2750.1,6.0267654]
[1645878398467,0.06043509,2750.8,2750.3,0.00500464]
[1645878399268,0.06043509,2750.8,2750.2,0.00336172]
[1645878399466,0.06043509,2750.8,2750.1,6.03012712]
[1645878399678,0.06043509,2750.8,2750.4,0.00500458]
[1645878400485,0.06043509,2750.8,2750.3,1.15854021]
[1645878400886,0.06043509,2750.8,2750.5,0.00500454]
[1645878401688,0.06043509,2750.8,2750.2,0.00336172]
[1645878401888,0.06043509,2750.8,2750.1,6.0267654]
[1645878402088,0.06043509,2750.8,2750.3,1.40125384]
[1645878402290,0.06043509,2750.8,2750.5,0.00500451]
[1645878403089,0.06043509,2750.8,2750.2,0.00336172]
[1645878403289,0.06043509,2750.8,2750.5,0.00500451]
[1645878404136,0.06043509,2750.8,2750.2,0.00336172]
[1645878404335,0.06043509,2750.8,2750.5,0.00500451]
[1645878405438,0.06043509,2750.8,2750.2,0.00336172]
[1645878405735,0.06043509,2750.8,2750.5,0.00500451]
[1645878406537,0.06043509,2750.8,2750.2,0.00336172]
[1645878406738,0.06043509,2750.8,2750.1,7.14761343]
[1645878406938,0.06043509,2750.8,2750.5,0.00500451]
[1645878407780,0.06043509,2750.8,2750.2,0.00336172]
[1645878407984,0.06043509,2750.8,2750.1,7.14761343]
[1645878408181,0.06043509,2750.8,2750.5,0.00500451]
[1645878408980,0.06043509,2750.8,2750.2,0.00336172]
[1645878409182,0.06043509,2750.8,2750.5,0.00464918]
[1645878410182,0.06043509,2750.8,2750.2,0.00336172]
[1645878410381,0.06043509,2750.8,2750.5,0.00464918]
[1645878411444,0.06043509,2750.8,2750.2,0.00336172]
[1645878411643,0.06043509,2750.8,2750.5,0.00464918]
[1645878412544,0.06043509,2750.8,2750.3,1.13338978]
[1645878412843,0.06043509,2750.8,2750.5,0.00464918]
[1645878413846,0.0008,2750.3,2750.2,0.00336172]
[1645878414047,0.0008,2750.3,2750.1,5.8813654]
[1645878414549,0.0008,2750.3,2750.1,9.3813654]
[1645878414787,0.0008,2750.3,2750.1,5.8813654]
[1645878414990,0.0008,2750.3,2750.1,9.3813654]
[1645878415189,0.0008,2750.3,2750.1,10.68603861]
[1645878415387,0.0008,2750.3,2750.1,7.18603861]
[1645878415587,0.0008,2750.3,2750.2,1.43773801]
[1645878415986,0.0008,2750.3,2750.2,2.88518277]
[1645878416389,0.0008,2750.3,2750.2,6.38518277]
[1645878416589,0.0008,2750.3,2750.2,2.88518277]
[1645878416790,0.0008,2750.3,2750.2,1.44744476]
[1645878418091,0.0008,2750.3,2750.1,5.88603701]
[1645878418295,0.0008,2750.3,2750.2,1.44824994]
[1645878419155,0.0008,2750.3,2750.1,5.88603704]
[1645878419156,0.02216661,2750.3,2750.1,5.88603704]
[1645878419352,0.06043509,2750.2,2750.1,5.88603704]
[1645878419850,0.58343509,2750.2,2750.1,5.8813654]
[1645878420651,0.58343509,2750.2,2750.1,5.87980698]
[1645878423288,0.523,2750.2,2750.1,5.87980698]
[1645878423491,0.60326816,2750.2,2750.1,5.87980698]
[1645878431495,2.19609872,2750.2,2750.1,5.87980698]
[1645878431695,2.73282816,2750.2,2750.1,5.87980698]
[1645878431898,2.73282816,2750.2,2749.8,0.00336172]
[1645878431899,6.5,2750.1,2749.8,0.00336172]
[1645878432099,6.5,2750.1,2749.6,0.25]
[1645878432100,0.91014634,2749.9,2749.6,0.01767521]
[1645878432296,1.5134145,2749.8,2749.6,0.01767521]